bitfinex/quotes_BTCUSD_20251110
["timestamp","ask_amount","ask_price","bid_price","bid_amount"]
[1762745037395,1.33636528,106010.0,106000.0,0.00037875]
[1762745037589,1.65380765,106010.0,106000.0,0.00037875]
[1762745038044,1.66324072,106010.0,105980.0,0.06758863]
[1762745038245,0.18873266,105970.0,105960.0,0.52165971]
[1762745038391,0.25613266,105970.0,105960.0,0.323]
[1762745038591,0.25613266,105970.0,105960.0,0.64044237]
[1762745039017,0.0674,105970.0,105960.0,0.84178471]
[1762745039381,0.25613266,105970.0,105960.0,0.84178471]
[1762745039585,0.24027266,105970.0,105960.0,0.84178471]
[1762745039787,0.05154,105970.0,105960.0,0.85776471]
[1762745040150,0.04168,105970.0,105960.0,1.19970708]
[1762745040353,0.04168,105970.0,105960.0,0.87670708]
[1762745040772,0.04168,105970.0,105960.0,0.87970708]
[1762745040968,0.04168,105970.0,105960.0,0.95234384]
[1762745041169,0.04168,105970.0,105960.0,0.88170708]
[1762745041380,0.00986,105980.0,105960.0,0.88170708]
[1762745041381,0.00986,105980.0,105970.0,0.18873266]
[1762745041572,0.05154,105980.0,105970.0,0.55877503]
[1762745041915,0.04168,105980.0,105970.0,0.55877503]
[1762745042570,0.00986,105990.0,105980.0,0.18871485]
[1762745042775,0.05154,105990.0,105980.0,0.518749]
[1762745043084,0.25609704,105990.0,105980.0,0.518749]
[1762745043225,0.25609704,105990.0,105980.0,0.51827722]
[1762745043431,0.25609704,105990.0,105980.0,0.83571959]
[1762745043637,0.25609704,105990.0,105980.0,0.83619137]
[1762745044036,0.0674,105990.0,105980.0,0.83619137]
[1762745044277,0.25709704,105990.0,105980.0,0.83619137]
[1762745045953,0.28067704,105990.0,105980.0,0.83619137]
[1762745046159,0.28067704,105990.0,105980.0,0.64700474]
[1762745046358,0.28067704,105990.0,105980.0,0.63488474]
[1762745047160,0.36124369,105990.0,105980.0,0.63488474]
[1762745047361,0.28067704,105990.0,105980.0,0.63488474]
[1762745047561,0.28067704,105990.0,105980.0,0.63535652]
[1762745047781,0.28067704,105990.0,105980.0,0.63488474]
[1762745048691,0.28067704,105990.0,105980.0,0.31744237]
[1762745049421,0.28067704,105990.0,105980.0,0.00094008]
[1762745049636,0.29833297,105990.0,105980.0,0.0004683]
[1762745050273,0.61577534,105990.0,105980.0,0.0004683]
[1762745050469,0.29833297,105990.0,105980.0,0.0004683]
[1762745052449,0.61577534,105990.0,105980.0,0.0004683]
[1762745052860,0.29833297,105990.0,105980.0,0.0004683]
[1762745053136,0.62133297,105990.0,105980.0,0.0004683]
[1762745057065,0.97495762,105990.0,105980.0,0.0004683]
[1762745057668,1.15614762,105990.0,105980.0,0.0004683]
[1762745059177,1.15661936,105990.0,105980.0,0.0004683]
[1762745059396,1.15614762,105990.0,105980.0,0.0004683]
[1762745059599,1.15661936,105990.0,105980.0,0.0004683]
[1762745060030,1.15614762,105990.0,105980.0,0.0004683]
[1762745060989,1.15661936,105990.0,105980.0,0.0004683]
[1762745061190,1.15614762,105990.0,105980.0,0.0004683]
[1762745063228,1.15661936,105990.0,105980.0,0.0004683]
[1762745064090,1.16496482,105990.0,105980.0,0.0004683]
[1762745064698,0.84799419,105990.0,105980.0,0.0004683]
[1762745064895,0.65798699,105990.0,105980.0,0.0004683]
[1762745065101,0.68632187,105990.0,105980.0,0.0004683]
[1762745065648,0.65798699,105990.0,105980.0,0.0004683]
[1762745066235,0.65798699,105990.0,105980.0,0.31791067]
[1762745066418,0.65751525,105990.0,105980.0,0.0004683]
[1762745066616,0.65798699,105990.0,105980.0,0.0004683]
[1762745067172,0.97495762,105990.0,105980.0,0.0004683]
[1762745067461,1.67977962,105990.0,105980.0,0.0004683]
[1762745067701,1.59833262,105990.0,105980.0,0.0004683]
[1762745067847,1.60715832,105990.0,105980.0,0.0004683]
[1762745068053,1.6354932,105990.0,105980.0,0.0004683]
[1762745070059,1.31805083,105990.0,105980.0,0.0004683]
[1762745070258,1.6354932,105990.0,105980.0,0.0004683]
[1762745070473,1.6364932,105990.0,105980.0,0.0004683]
[1762745070677,1.63696494,105990.0,105980.0,0.0004683]
[1762745070857,1.32252257,105990.0,105980.0,0.0004683]
[1762745071080,1.6394932,105990.0,105980.0,0.0004683]
[1762745071318,1.63996494,105990.0,105980.0,0.0004683]
[1762745071693,1.6394932,105990.0,105980.0,0.0004683]
[1762745071892,1.32205083,105990.0,105980.0,0.0004683]
[1762745072056,1.6394932,105990.0,105980.0,0.0004683]
[1762745072517,1.95693557,105990.0,105980.0,0.0004683]
[1762745072755,1.63996494,105990.0,105980.0,0.0004683]
[1762745072910,1.66030863,105990.0,105980.0,0.0004683]
[1762745073116,0.18875047,105960.0,105950.0,0.0002]
[1762745073283,0.2948102,105960.0,105950.0,0.00034423]
[1762745073489,0.2947964,105960.0,105950.0,0.3177866]
[1762745074318,0.2947964,105960.0,105950.0,0.3217866]
[1762745074896,0.2947964,105960.0,105950.0,0.51055488]
[1762745075088,0.2947964,105960.0,105950.0,0.3217866]
[1762745075301,0.2947964,105960.0,105950.0,0.51055488]
[1762745075497,0.2712164,105960.0,105950.0,0.3217866]
[1762745075710,0.2712164,105960.0,105950.0,0.3247866]
[1762745076117,0.2947964,105960.0,105950.0,0.51355488]
[1762745076456,0.37558116,105960.0,105950.0,0.51355488]
[1762745077105,0.2549464,105960.0,105950.0,0.5421268]
[1762745077284,0.2712164,105960.0,105950.0,0.51355488]
[1762745077671,0.08246593,105960.0,105950.0,0.52542488]
[1762745077871,0.02451593,105960.0,105950.0,0.5421268]
[1762745078072,0.00686,105970.0,105960.0,0.18875047]
[1762745078325,0.06620406,105970.0,105960.0,0.87451521]
[1762745078993,0.06620406,105970.0,105960.0,0.55714589]
[1762745079203,0.05934406,105970.0,105960.0,0.60009317]
[1762745079340,0.05934406,105970.0,105960.0,0.55961776]
[1762745079764,0.05934406,105970.0,105960.0,0.56114589]
[1762745080269,0.05934406,105970.0,105960.0,0.56161776]
[1762745080834,0.05934406,105970.0,105960.0,0.56114589]
[1762745081983,0.24807672,105970.0,105960.0,0.56161776]
[1762745082215,0.24807672,105970.0,105960.0,0.56114589]
[1762745083342,0.20639672,105970.0,105960.0,0.56114589]
[1762745083542,0.01766406,105970.0,105960.0,0.56114589]
[1762745083714,0.01766406,105970.0,105960.0,0.56208619]
[1762745085176,0.23725539,105980.0,105970.0,0.18873266]
[1762745085398,0.25492744,105980.0,105960.0,0.56161776]
[1762745085621,0.33592455,105980.0,105970.0,0.18896685]
[1762745085830,0.25492744,105980.0,105970.0,0.18896685]
[1762745086032,0.27119744,105980.0,105970.0,0.18896685]
[1762745087702,0.27119815,105980.0,105970.0,0.00023419]
[1762745088398,0.29397815,105980.0,105970.0,0.00023419]
[1762745088787,0.27119815,105980.0,105970.0,0.00023419]
[1762745088990,0.27119815,105980.0,105970.0,0.18896685]
[1762745089461,0.27119815,105980.0,105970.0,0.00023419]
[1762745089598,0.27119815,105980.0,105970.0,0.18896685]
[1762745090449,0.05935276,105980.0,105970.0,0.55824227]
[1762745090601,0.18871485,105980.0,105970.0,0.36998144]
[1762745090801,0.26844568,105980.0,105970.0,0.00070602]
[1762745091007,0.26844568,105980.0,105970.0,0.00023419]
[1762745091008,0.24485633,105980.0,105970.0,0.00023419]
[1762745091429,0.24485633,105980.0,105970.0,0.18896685]
[1762745091638,0.24485633,105980.0,105970.0,0.00023419]
[1762745091838,0.24485633,105980.0,105970.0,0.19096685]
[1762745092175,0.22207633,105980.0,105970.0,0.18896685]
[1762745092666,0.24565633,105980.0,105970.0,0.19096685]
[1762745092981,0.20638633,105980.0,105970.0,0.55863227]
[1762745093181,0.22272633,105980.0,105970.0,0.31774961]
[1762745093423,0.24630633,105980.0,105970.0,0.00023419]
[1762745093597,0.24630522,105980.0,105970.0,0.00023419]
[1762745096557,0.24630522,105980.0,105970.0,0.18896685]
[1762745096764,0.24630522,105980.0,105970.0,0.00023419]
[1762745098346,0.22272522,105980.0,105970.0,0.18896685]
[1762745098525,0.20638522,105980.0,105970.0,0.21693685]
[1762745098698,0.22272522,105980.0,105970.0,0.20093685]
[1762745099127,0.01767037,105980.0,105970.0,0.57735322]
[1762745099372,0.01767037,105980.0,105970.0,0.55863227]
[1762745099585,0.24023879,105990.0,105980.0,0.18871485]
[1762745099917,0.25791,105990.0,105980.0,0.18871485]
[1762745100041,0.29783,105990.0,105980.0,0.18871485]
[1762745100241,0.27425,105990.0,105980.0,0.18871485]
[1762745100789,0.27425,105990.0,105970.0,0.5431041]
[1762745100996,0.32819734,105990.0,105970.0,0.5431041]
[1762745101586,0.22863485,105980.0,105970.0,0.00070602]
[1762745101814,0.24630606,105980.0,105970.0,0.18896685]
[1762745102013,0.03401121,105980.0,105970.0,0.20093685]
[1762745102226,0.22272606,105980.0,105970.0,0.20093685]
[1762745102427,0.01767121,105980.0,105970.0,0.6050179]
[1762745102649,0.19855879,105990.0,105980.0,0.18871485]
[1762745102849,0.25790966,105990.0,105980.0,0.50623027]
[1762745103024,0.27424966,105990.0,105980.0,0.18871485]
[1762745103966,0.27424966,105990.0,105980.0,0.20068485]
[1762745104233,0.25790966,105990.0,105980.0,0.24086485]
[1762745104427,0.25790966,105990.0,105980.0,0.21668485]
[1762745104832,0.27424966,105990.0,105980.0,0.20068485]
[1762745105213,0.32457874,105990.0,105980.0,0.20068485]
[1762745105705,0.32457874,105990.0,105980.0,0.01197]
[1762745106492,0.18871485,105980.0,105970.0,0.18943868]
[1762745106719,0.20505485,105980.0,105970.0,0.00023419]
[1762745106888,0.20505485,105980.0,105970.0,0.18896685]
[1762745107251,0.20505485,105980.0,105970.0,0.20093685]
[1762745107444,0.18871485,105980.0,105970.0,0.21693685]
[1762745107786,0.18871485,105980.0,105970.0,0.24311685]
[1762745108005,0.18871485,105980.0,105970.0,0.24511685]
[1762745108707,0.18871485,105980.0,105970.0,0.24488266]
[1762745110056,0.18871485,105980.0,105970.0,0.03197]
[1762745110259,0.20505485,105980.0,105970.0,0.20470266]
[1762745111584,0.22863485,105980.0,105970.0,0.004]
[1762745112729,0.22863485,105980.0,105970.0,0.00447183]
[1762745112913,0.24631985,105980.0,105970.0,0.004]
[1762745114469,0.22273985,105980.0,105970.0,0.19273266]
[1762745114811,0.017685,105980.0,105970.0,0.24488266]
[1762745116239,0.20639985,105980.0,105970.0,0.56239808]
[1762745116781,0.017685,105980.0,105970.0,0.53821808]
[1762745117001,0.20639985,105980.0,105970.0,0.53821808]
[1762745117209,0.017685,105980.0,105970.0,0.56239808]
[1762745117539,0.20639985,105980.0,105970.0,0.53868991]
[1762745117722,0.20639985,105980.0,105970.0,0.53821808]
[1762745117919,0.20639985,105980.0,105970.0,0.22070266]
[1762745118128,0.20639985,105980.0,105970.0,0.24488266]
[1762745118644,0.22273985,105980.0,105970.0,0.01597]
[1762745119201,0.29502289,105980.0,105970.0,0.004]
[1762745121009,0.29502566,105980.0,105970.0,0.004]
[1762745121332,0.24632262,105980.0,105970.0,0.004]
[1762745121526,0.56383804,105980.0,105970.0,0.004]
[1762745121733,0.24632262,105980.0,105970.0,0.004]
[1762745122679,0.24632262,105980.0,105960.0,0.18922196]
[1762745122820,0.55517938,105980.0,105960.0,0.1892201]
[1762745123034,0.07835645,105970.0,105960.0,0.2012801]
[1762745123238,0.07835645,105970.0,105960.0,0.20080823]
[1762745123443,0.18873266,105970.0,105960.0,0.23879245]
[1762745123644,0.18873266,105970.0,105960.0,0.20104245]
[1762745124218,0.54791027,105980.0,105960.0,0.23879245]
[1762745124400,0.56606976,105980.0,105960.0,0.23926432]
[1762745124603,0.05936815,105980.0,105970.0,0.23854266]
[1762745124776,0.248083,105980.0,105970.0,0.23854266]
[1762745124978,0.05936815,105980.0,105970.0,0.23854266]
[1762745125779,0.03819237,105990.0,105980.0,0.18871485]
[1762745125999,0.02754738,105990.0,105980.0,0.23852485]
[1762745126294,0.06922738,105990.0,105980.0,0.21585485]
[1762745126892,0.07022738,105990.0,105980.0,0.23852485]
[1762745127319,0.06922738,105990.0,105980.0,0.23852485]
[1762745127627,0.07122738,105990.0,105980.0,0.21585485]
[1762745128696,0.06922738,105990.0,105980.0,0.23852485]
[1762745129632,0.06922738,105990.0,105980.0,0.21585485]
[1762745131286,0.01768738,105990.0,105980.0,0.57220787]
[1762745131489,0.01768738,105990.0,105980.0,0.25469245]
[1762745131892,0.01768738,105990.0,105980.0,0.23852485]
[1762745132098,0.00686,106000.0,105990.0,0.18869704]
[1762745132333,0.00686,106000.0,105990.0,0.23850704]
[1762745132553,0.02454249,106000.0,105990.0,0.23850704]
[1762745132697,0.23030144,106010.0,106000.0,0.18867924]
[1762745132899,0.25682237,106010.0,106000.0,0.23848924]
[1762745133160,0.25682237,106010.0,106000.0,0.04981]
[1762745133356,0.57447412,106010.0,106000.0,0.23848924]
[1762745133880,0.6592906,106010.0,106000.0,0.02714]
[1762745134095,0.33977518,106010.0,106000.0,0.02714]
[1762745134488,0.34077518,106010.0,106000.0,0.02714]
[1762745134700,0.29913518,106010.0,106000.0,0.02714]
[1762745134837,0.2163187,106010.0,106000.0,0.02714]
[1762745135042,0.53583412,106010.0,106000.0,0.02714]
[1762745135250,0.53583412,106010.0,106000.0,0.01206]
[1762745136241,0.53583412,106010.0,106000.0,0.02714]
[1762745136445,0.52699381,106010.0,106000.0,0.02714]
[1762745137216,0.52699381,106010.0,106000.0,0.23848924]
[1762745138793,0.33833237,106010.0,106000.0,0.23848924]
[1762745139158,0.52688243,106010.0,106000.0,0.23848924]
[1762745139653,0.18871485,105980.0,105960.0,0.03543609]
[1762745139860,0.5061367,105970.0,105960.0,0.01229422]
[1762745140064,0.5061367,105970.0,105960.0,0.00023422]
[1762745140822,0.5061367,105970.0,105960.0,0.05004422]
[1762745141022,0.5061367,105970.0,105960.0,0.05304422]
[1762745141222,0.5061367,105970.0,105960.0,0.03037422]
[1762745141393,0.5061367,105970.0,105960.0,0.03337422]
[1762745141783,0.5061367,105970.0,105960.0,0.03037422]
[1762745142638,0.5071367,105970.0,105960.0,0.03537422]
[1762745144039,0.5071367,105970.0,105960.0,0.24679469]
[1762745144040,0.31840404,105970.0,105960.0,0.24679469]
[1762745144210,0.18973266,105970.0,105960.0,0.24679469]
[1762745146078,0.001,105970.0,105960.0,0.56419873]
[1762745147113,0.001,105970.0,105960.0,0.24726656]
[1762745147305,0.001,105970.0,105960.0,0.5646706]
[1762745147917,0.001,105970.0,105960.0,0.24726656]
[1762745150772,0.18973266,105970.0,105960.0,0.24726656]
[1762745150968,0.001,105970.0,105960.0,0.24679469]
[1762745151201,0.001,105970.0,105960.0,0.24726656]
[1762745151334,0.18973266,105970.0,105960.0,0.24726656]
[1762745151677,0.18973266,105970.0,105960.0,0.24679469]
[1762745152099,0.001,105970.0,105960.0,0.24679469]
[1762745152298,0.001,105970.0,105960.0,0.24726656]
[1762745152503,0.18973266,105970.0,105960.0,0.24726656]
[1762745152733,0.001,105970.0,105960.0,0.24679469]
[1762745152873,0.001,105970.0,105960.0,0.24726656]
[1762745153373,0.001,105970.0,105960.0,0.5646706]
[1762745153573,0.001,105970.0,105960.0,0.24726656]
[1762745154788,0.001,105970.0,105960.0,0.5646706]
[1762745157237,0.18973266,105970.0,105960.0,0.24726656]
[1762745157437,0.18973266,105970.0,105960.0,0.24679469]
[1762745157854,0.001,105970.0,105960.0,0.24679469]
[1762745158032,0.18973266,105970.0,105960.0,0.24679469]
[1762745158288,0.001,105970.0,105960.0,0.24679469]
[1762745158533,0.001,105970.0,105960.0,0.56419873]
[1762745158950,0.001,105970.0,105960.0,0.88207464]
[1762745159166,0.001,105970.0,105960.0,0.5646706]
[1762745159370,0.001,105970.0,105960.0,0.56419873]
[1762745159520,0.001,105970.0,105960.0,0.5646706]
[1762745160455,0.001,105970.0,105960.0,0.56419873]
[1762745160595,0.001,105970.0,105960.0,0.5646706]
[1762745160797,0.001,105970.0,105960.0,0.56419873]
[1762745162134,0.001,105970.0,105960.0,0.97058837]
[1762745162748,0.001,105970.0,105960.0,0.97106024]
[1762745162983,0.001,105970.0,105960.0,0.88207464]
[1762745164341,0.001,105970.0,105960.0,0.94966327]
[1762745167311,0.001,105970.0,105960.0,0.63225923]
[1762745169287,0.001,105970.0,105960.0,0.31485519]
[1762745169582,0.001,105970.0,105960.0,0.63225923]
[1762745169836,0.001,105970.0,105960.0,0.5646706]
[1762745170254,0.001,105970.0,105960.0,0.24726656]
[1762745170427,0.5071367,105970.0,105960.0,0.22412469]
[1762745170662,0.5071367,105970.0,105960.0,0.24860469]
[1762745170781,0.5071367,105970.0,105960.0,0.02029422]
[1762745170985,0.5071367,105970.0,105960.0,0.00823422]
[1762745171207,0.52480665,105970.0,105960.0,0.00823422]
[1762745172042,0.52380665,105970.0,105960.0,0.00323422]
[1762745172361,0.52480665,105970.0,105960.0,0.00323422]
[1762745173600,0.52480665,105970.0,105960.0,0.00523422]
[1762745176452,0.2078743,105970.0,105960.0,0.00523422]
[1762745176637,0.52527834,105970.0,105960.0,0.00523422]
[1762745177262,0.50760839,105970.0,105960.0,0.00523422]
[1762745178580,0.53594608,105970.0,105960.0,0.00523422]
[1762745178786,0.53594608,105970.0,105960.0,0.19398469]
[1762745178999,0.02933769,105970.0,105960.0,0.26416092]
[1762745179171,0.21807035,105970.0,105960.0,0.24670469]
[1762745179332,0.53547439,105970.0,105960.0,0.24670469]
[1762745179544,0.5071367,105970.0,105960.0,0.24670469]
[1762745179777,0.31840404,105970.0,105960.0,0.24670469]
[1762745181028,0.001,105970.0,105960.0,0.24670469]
[1762745181811,0.18973266,105970.0,105960.0,0.24670469]
[1762745182013,0.26636259,105970.0,105960.0,0.24670469]
[1762745184036,0.58376663,105970.0,105960.0,0.22222469]
[1762745184828,0.5071367,105970.0,105960.0,0.22222469]
[1762745185967,0.5071367,105970.0,105960.0,0.20591469]
[1762745186196,0.5071367,105970.0,105960.0,0.00523422]
[1762745186999,0.50760853,105970.0,105960.0,0.00523422]
[1762745187205,0.50760853,105970.0,105960.0,0.19398469]
[1762745187406,0.5071367,105970.0,105960.0,0.19398469]
[1762745187809,0.5071367,105970.0,105960.0,0.00523422]
[1762745190510,0.5071367,105970.0,105960.0,0.19398469]
[1762745190838,0.5071367,105970.0,105960.0,0.00523422]
[1762745191048,0.5071367,105970.0,105960.0,0.19398469]
[1762745191243,0.5071367,105970.0,105960.0,0.00523422]
[1762745193961,0.5071367,105970.0,105960.0,0.20603469]
[1762745194156,0.5071367,105970.0,105960.0,0.01728422]
[1762745194359,0.5071367,105970.0,105960.0,0.00523422]
[1762745194967,0.5076084,105970.0,105960.0,0.00523422]
[1762745196180,0.52527013,105970.0,105960.0,0.00523422]
[1762745198697,0.20786609,105970.0,105960.0,0.00523422]
[1762745199081,0.52505735,105970.0,105960.0,0.00523422]
[1762745199283,0.52552905,105970.0,105960.0,0.00523422]
[1762745201506,0.60116461,105970.0,105960.0,0.00523422]
[1762745204088,0.60069291,105970.0,105960.0,0.00523422]
[1762745204404,0.60116461,105970.0,105960.0,0.00523422]
[1762745204662,0.6011647,105970.0,105960.0,0.00523422]
[1762745207326,0.60069291,105970.0,105960.0,0.00523422]
[1762745208360,0.28302995,105970.0,105960.0,0.00523422]
[1762745208669,0.60069291,105970.0,105960.0,0.00523422]
[1762745208881,0.6011647,105970.0,105960.0,0.00523422]
[1762745209079,0.60116461,105970.0,105960.0,0.00523422]
[1762745209584,0.60069291,105970.0,105960.0,0.00523422]
[1762745211065,0.60116461,105970.0,105960.0,0.00523422]
[1762745211245,0.52552905,105970.0,105960.0,0.03332422]
[1762745211464,0.20786609,105970.0,105960.0,0.22207469]
[1762745211623,0.20739439,105970.0,105960.0,0.20629469]
[1762745211961,0.20739439,105970.0,105960.0,0.19398469]
[1762745212363,0.28298278,105970.0,105960.0,0.19398469]
[1762745212991,0.20739439,105970.0,105960.0,0.24419469]
[1762745213341,0.01866173,105970.0,105960.0,0.56185765]
[1762745213544,0.001,105970.0,105960.0,0.56185765]
[1762745214139,0.001,105970.0,105960.0,0.88532952]
[1762745214520,0.001,105970.0,105960.0,0.98343125]
[1762745214878,0.001,105970.0,105960.0,0.88532952]
[1762745215122,0.23079137,106000.0,105990.0,0.18869704]
[1762745215294,0.25697721,106000.0,105990.0,0.18869704]
[1762745215658,0.25697721,106000.0,105990.0,0.20004704]
[1762745217092,0.02665722,106000.0,105990.0,0.20004704]
[1762745217336,0.02665722,106000.0,105990.0,0.61313908]
[1762745217337,0.01981692,106000.0,105990.0,0.61313908]
[1762745217547,0.01981692,106000.0,105990.0,0.93080204]
[1762745217771,0.00213631,106000.0,105990.0,0.93080204]
[1762745217983,0.00213631,106000.0,105990.0,1.25380204]
[1762745218190,0.00013631,106000.0,105990.0,1.25380204]
[1762745218399,0.00013631,106000.0,105990.0,1.35190377]
[1762745218604,0.00013631,106000.0,105990.0,1.35590377]
[1762745219049,0.00013631,106000.0,105990.0,1.35490377]
[1762745219238,0.00013631,106000.0,105990.0,1.35190377]
[1762745219604,0.00013631,106000.0,105990.0,1.35590377]
[1762745219802,0.00013631,106000.0,105990.0,1.03824081]
[1762745220008,0.00013631,106000.0,105990.0,0.94013908]
[1762745220431,0.00113631,106000.0,105990.0,0.94761082]
[1762745220746,0.00113631,106000.0,105990.0,0.94713908]
[1762745221130,0.00113631,106000.0,105990.0,0.94761082]
[1762745223092,0.00113631,106000.0,105990.0,0.62994786]
[1762745223652,0.00113631,106000.0,105990.0,0.57337878]
[1762745223899,0.00113631,106000.0,105990.0,0.25037878]
[1762745225027,0.18981555,106000.0,105990.0,0.25037878]
[1762745225140,0.00113631,106000.0,105990.0,0.24990704]
[1762745225351,0.00113631,106000.0,105990.0,0.25037878]
[1762745226379,0.18981555,106000.0,105990.0,0.25037878]
[1762745226570,0.53106341,106000.0,105990.0,0.21104704]
[1762745226771,0.50300809,106000.0,105990.0,0.21104704]
[1762745226978,0.50300809,106000.0,105990.0,0.24990704]
[1762745227380,0.50300809,106000.0,105990.0,0.23890704]
[1762745227635,0.70679887,106010.0,105990.0,0.23890704]
[1762745227799,0.001,106000.0,105990.0,0.24690704]
[1762745228567,0.70679887,106010.0,106000.0,0.18867924]
[1762745228779,0.72442391,106010.0,106000.0,0.20002924]
[1762745228984,0.21762504,106010.0,106000.0,0.21537924]
[1762745229159,0.21762504,106010.0,106000.0,0.23888924]
[1762745229396,0.40628648,106010.0,106000.0,0.23888924]
[1762745229598,0.21762504,106010.0,106000.0,0.23888924]
[1762745229795,0.21762504,106010.0,106000.0,0.28313004]
[1762745229973,0.21762504,106010.0,106000.0,0.23888924]
[1762745230212,0.40628648,106010.0,106000.0,0.05021]
[1762745230384,0.72494944,106010.0,106000.0,0.0267]
[1762745230590,0.72494944,106010.0,106000.0,0.01135]
[1762745230789,0.72494944,106010.0,106000.0,0.01235]
[1762745230790,0.72394944,106010.0,106000.0,0.01235]
[1762745230993,0.72394944,106010.0,106000.0,0.001]
[1762745231342,0.72494944,106010.0,106000.0,0.004]
[1762745231722,0.76113172,106010.0,106000.0,0.004]
[1762745232788,0.97251072,106010.0,106000.0,0.004]
[1762745232988,1.30432428,106010.0,106000.0,0.004]
[1762745233185,1.30332428,106010.0,106000.0,0.001]
[1762745233726,0.18869704,105990.0,105980.0,0.01182178]
[1762745233930,0.53003804,105990.0,105980.0,0.01135]
[1762745234138,0.50645091,105990.0,105980.0,0.01135]
[1762745234364,9.091e-05,105990.0,105980.0,0.23892485]
[1762745234970,0.00109091,105990.0,105980.0,0.24439663]
[1762745235357,0.00109091,105990.0,105980.0,0.30096571]
[1762745236700,0.00109091,105990.0,105980.0,0.30049393]
[1762745237444,0.00109091,105990.0,105980.0,0.30096571]
[1762745245162,0.00109091,105990.0,105980.0,0.30049393]
[1762745249879,0.00109091,105990.0,105980.0,0.30096571]
[1762745250275,0.00109091,105990.0,105980.0,0.24439663]
[1762745251143,0.00109091,105990.0,105980.0,0.24392485]
[1762745252198,0.00109091,105990.0,105980.0,0.60461558]
[1762745252640,0.00109091,105990.0,105980.0,0.60508736]
[1762745253017,0.00109091,105990.0,105980.0,0.60461558]
[1762745253558,0.00109091,105990.0,105980.0,0.56692485]
[1762745253763,0.00109091,105990.0,105980.0,0.56739663]
[1762745254185,0.00109091,105990.0,105980.0,0.56692485]
[1762745254363,0.00109091,105990.0,105980.0,0.56739663]
[1762745254709,0.00109091,105990.0,105980.0,0.24439663]
[1762745258644,0.18978795,105990.0,105980.0,0.24392485]
[1762745260083,0.50728208,105990.0,105980.0,0.005]
[1762745260918,0.50737266,105990.0,105980.0,0.005]
[1762745261516,0.5078444,105990.0,105980.0,0.005]
[1762745262069,0.50737266,105990.0,105980.0,0.005]
[1762745262364,0.5078444,105990.0,105980.0,0.005]
[1762745262676,0.5078444,105990.0,105980.0,0.20565485]
[1762745262677,0.00156265,105990.0,105980.0,0.20565485]
[1762745262820,0.50737266,105990.0,105980.0,0.20565485]
[1762745263223,0.5250409,105990.0,105980.0,0.005]
[1762745263423,0.52551264,105990.0,105980.0,0.005]
[1762745264514,0.5250409,105990.0,105980.0,0.005]
[1762745265687,0.52551264,105990.0,105980.0,0.005]
[1762745267690,0.5250409,105990.0,105980.0,0.005]
[1762745274451,0.52551264,105990.0,105980.0,0.19371485]
[1762745274612,0.50737266,105990.0,105980.0,0.005]
[1762745274826,0.5078444,105990.0,105980.0,0.005]
[1762745275012,0.5078444,105990.0,105980.0,0.19371485]
[1762745275329,0.31867562,105990.0,105980.0,0.24415485]
[1762745275551,0.50737266,105990.0,105980.0,0.24415485]
[1762745275753,0.50737266,105990.0,105980.0,0.005]
[1762745275961,0.5078444,105990.0,105980.0,0.005]
[1762745276746,0.5078444,105990.0,105980.0,0.19371485]
[1762745276959,0.50737266,105990.0,105980.0,0.005]
[1762745277156,0.5078444,105990.0,105980.0,0.005]
[1762745277397,0.5078444,105990.0,105980.0,0.19371485]
[1762745277573,0.50737266,105990.0,105980.0,0.19371485]
[1762745277975,0.50737266,105990.0,105980.0,0.005]
[1762745278172,0.5078444,105990.0,105980.0,0.005]
[1762745278379,0.5078444,105990.0,105980.0,0.19371485]
[1762745278579,0.50737266,105990.0,105980.0,0.19371485]
[1762745279062,0.50737266,105990.0,105980.0,0.005]
[1762745279263,0.52550661,105990.0,105980.0,0.005]
[1762745280376,0.52550661,105990.0,105980.0,0.19371485]
[1762745280575,0.52503487,105990.0,105980.0,0.19371485]
[1762745280786,0.01875312,105990.0,105980.0,0.91394708]
[1762745281026,0.00109091,105990.0,105980.0,0.91394708]
[1762745281588,0.00109091,105990.0,105980.0,0.91441886]
[1762745281802,0.00109091,105990.0,105980.0,0.56221134]
[1762745283009,0.00109091,105990.0,105980.0,0.61221134]
[1762745285965,0.00109091,105990.0,105980.0,0.29462663]
[1762745286187,0.00109091,105990.0,105980.0,0.61221134]
[1762745286609,0.00109091,105990.0,105980.0,0.65889982]
[1762745287073,0.00109091,105990.0,105980.0,0.29462663]
[1762745287286,0.00109091,105990.0,105980.0,0.61221134]
[1762745287505,0.00109091,105990.0,105980.0,0.29462663]
[1762745287967,0.00109091,105990.0,105980.0,0.56221134]
[1762745288179,0.00109091,105990.0,105980.0,0.24462663]
[1762745288385,0.50737266,105990.0,105980.0,0.24415485]
[1762745288591,0.50737266,105990.0,105980.0,0.20604485]
[1762745288995,0.50737266,105990.0,105980.0,0.22165485]
[1762745289196,0.50737266,105990.0,105980.0,0.24415485]
[1762745290118,0.50737266,105990.0,105980.0,0.05544]
[1762745290711,0.50737266,105990.0,105980.0,0.24415485]
[1762745291634,0.50737266,105990.0,105980.0,0.03294]
[1762745291899,0.50737266,105990.0,105980.0,0.24415485]
[1762745295143,0.00109091,105990.0,105980.0,0.28867154]
[1762745296026,0.00109091,105990.0,105980.0,0.24415485]
[1762745300794,0.18978795,105990.0,105980.0,0.24415485]
[1762745301569,0.00109091,105990.0,105980.0,0.24415485]
[1762745302752,0.50737266,105990.0,105980.0,0.22165485]
[1762745303276,0.50737266,105990.0,105980.0,0.005]
[1762745303481,0.50737266,105990.0,105980.0,0.22131485]
[1762745303684,0.50737266,105990.0,105980.0,0.24554485]
[1762745304277,0.50737266,105990.0,105980.0,0.05683]
[1762745304474,0.50737266,105990.0,105980.0,0.005]
[1762745305310,0.50737266,105990.0,105980.0,0.01726]
[1762745305498,0.90273965,105990.0,105980.0,0.005]
[1762745305919,1.72815992,105990.0,105980.0,0.005]
[1762745306319,1.72763166,105990.0,105980.0,0.001]
[1762745306529,1.75596775,105990.0,105980.0,0.001]
[1762745306736,1.75596775,105990.0,105980.0,0.002]
[1762745307145,1.75596775,105990.0,105980.0,0.001]
[1762745307346,0.18873266,105970.0,105960.0,0.19842191]
[1762745307571,0.52990895,105970.0,105960.0,0.21068191]
[1762745307682,0.31758471,105970.0,105960.0,0.21068191]
[1762745307894,0.35918471,105970.0,105960.0,0.21068191]
[1762745308141,0.35918471,105970.0,105960.0,0.25025191]
[1762745308296,0.0416,105970.0,105960.0,0.25025191]
[1762745309049,0.0416,105970.0,105960.0,0.25125191]
[1762745309467,0.028427,105990.0,105980.0,0.18871485]
[1762745309634,9.091e-05,105990.0,105980.0,0.53389956]
[1762745309842,9.091e-05,105990.0,105980.0,0.55812956]
[1762745310449,9.091e-05,105990.0,105980.0,0.24054485]
[1762745310651,0.00209091,105990.0,105980.0,0.24054485]
[1762745311014,0.00109091,105990.0,105980.0,0.24054485]
[1762745311217,9.091e-05,105990.0,105980.0,0.24054485]